lending/lending_fUSD_20250430
["ID","MTS","AMOUNT","RATE_DAILY","PERIOD"]
[359434720,1746017229813,-500.0,0.0002,2]
[359434721,1746017229825,-500.0,0.0002,2]
[359434722,1746017229836,-500.0,0.0002,2]
[359434723,1746017229851,-500.0,0.0002,2]
[359434724,1746017229862,-266.80133753,0.0002,2]
[359434725,1746017229873,-500.0,0.0002,2]
[359434726,1746017229889,-150.0,0.0002,2]
[359434727,1746017229907,-1053.0,0.0002,2]
[359434728,1746017230085,-278259.75102118,0.0002,2]
[359434729,1746017230188,-311976.07,0.0002,2]
[359434730,1746017231207,-300.0,0.00019999,2]
[359434731,1746017231227,-300.0,0.0002,2]
[359434732,1746017231243,-552.49428965,0.00019973,2]
[359434733,1746017231254,-310823.57571035,0.0002,2]
[359434734,1746017232370,-1160.37533585,0.000199,2]
[359434735,1746017232393,-1160.37533585,0.0002,2]
[359434736,1746017232405,-309655.3193283,0.0002,2]
[359434737,1746017233586,-500.0,0.00019999,2]
[359434738,1746017233606,-500.0,0.0002,2]
[359434739,1746017233617,-310976.07,0.0002,2]
[359434771,1746017431512,-300.0,0.00019599,2]
[359434772,1746017431526,-1200.0,0.00019599,2]
[359434773,1746017431539,-300.0,0.00019599,2]
[359434775,1746017431552,-240.00004,0.000196,2]
[359434778,1746017431570,-250.0,0.000196,2]
[359434783,1746017431617,-470.18349059,0.000196,2]
[359434785,1746017431631,-281.1722111,0.000196,2]
[359434788,1746017434797,-300.06725612,0.00019501,2]
[359434789,1746017436305,-43.10013588,0.00019501,2]
[359434790,1746017436317,-2895.09911812,0.000196,2]
[359434814,1746017437384,-25863.54513919,0.000196,2]
[359434817,1746017437394,-200.0,0.00019749,2]
[359434818,1746017437404,-835.981861,0.00019799,2]
[359434819,1746017437413,-467.7683,0.000198,2]
[359434821,1746017437647,-200.0,0.00019879,2]
[359434822,1746017437675,-3019.4303,0.00019886,2]
[359434823,1746017437691,-316.8594,0.00019886,2]
[359434824,1746017437701,-631.03808419,0.000199,2]
[359434825,1746017437711,-2162.0964,0.000199,2]
[359434826,1746017437720,-1000.0,0.000199,2]
[359434828,1746017437730,-1000.0,0.000199,2]
[359434830,1746017437739,-393.37197229,0.00019973,2]
[359434832,1746017437748,-500.0,0.00019973,2]
[359434834,1746017437757,-1793.5130185,0.00019986,2]
[359434836,1746017437767,-3096.1175232,0.00019986,2]
[359434838,1746017437776,-666.0,0.00019999,2]
[359434840,1746017437785,-500.0,0.00019999,2]
[359434842,1746017437794,-500.0,0.00019999,2]
[359434844,1746017437803,-500.0,0.00019999,2]
[359434846,1746017437812,-500.0,0.00019999,2]
[359434848,1746017437821,-500.0,0.00019999,2]
[359434850,1746017437831,-401.94318147,0.00019999,2]
[359434853,1746017437841,-957.0,0.0002,2]
[359434856,1746017437850,-273.098363,0.0002,2]
[359434859,1746017437859,-3251776.96685894,0.0002,2]
[359434862,1746017437871,-151.0,0.0002,2]
[359434865,1746017437880,-157.890084,0.0002,2]
[359434868,1746017437889,-1000.0,0.0002,2]
[359434871,1746017437898,-1000.0,0.0002,2]
[359434874,1746017437907,-1000.0,0.0002,2]
[359434876,1746017437916,-1000.0,0.0002,2]
[359434878,1746017437926,-1000.0,0.0002,2]
[359434880,1746017437935,-1000.0,0.0002,2]
[359434882,1746017437944,-1000.0,0.0002,2]
[359434883,1746017437953,-1000.0,0.0002,2]
[359434885,1746017437962,-1000.0,0.0002,2]
[359434887,1746017437971,-1000.0,0.0002,2]
[359434889,1746017437980,-1000.0,0.0002,2]
[359434891,1746017437989,-1000.0,0.0002,2]
[359434893,1746017437998,-1000.0,0.0002,2]
[359434895,1746017438007,-1000.0,0.0002,2]
[359434897,1746017438017,-1000.0,0.0002,2]
[359434899,1746017438026,-1000.0,0.0002,2]
[359434901,1746017438035,-1000.0,0.0002,2]
[359434903,1746017438046,-1000.0,0.0002,2]
[359434905,1746017438055,-1000.0,0.0002,2]
[359434907,1746017438064,-1000.0,0.0002,2]
[359434909,1746017438073,-1000.0,0.0002,2]
[359434911,1746017438083,-1000.0,0.0002,2]
[359434913,1746017438092,-1000.0,0.0002,2]
[359434915,1746017438101,-1000.0,0.0002,2]
[359434917,1746017438111,-1000.0,0.0002,2]
[359434919,1746017438122,-1000.0,0.0002,2]
[359434921,1746017438132,-151.0,0.0002,2]
[359434923,1746017438141,-1000.0,0.0002,2]
[359434925,1746017438151,-1000.0,0.0002,2]
[359434927,1746017438160,-165.21946607,0.0002,2]
[359434929,1746017438170,-1000.0,0.0002,2]
[359434931,1746017438179,-1000.0,0.0002,2]
[359434933,1746017438189,-1000.0,0.0002,2]
[359434935,1746017438198,-1000.0,0.0002,2]
[359434937,1746017438207,-1000.0,0.0002,2]
[359434939,1746017438216,-1000.0,0.0002,2]
[359434941,1746017438225,-1000.0,0.0002,2]
[359434943,1746017438235,-1000.0,0.0002,2]
[359434945,1746017438244,-1000.0,0.0002,2]
[359434946,1746017438254,-1000.0,0.0002,2]
[359434949,1746017438265,-1000.0,0.0002,2]
[359434950,1746017438275,-1000.0,0.0002,2]
[359434952,1746017438284,-1000.0,0.0002,2]
[359434954,1746017438294,-1000.0,0.0002,2]
[359434956,1746017438303,-1000.0,0.0002,2]
[359434958,1746017438312,-1000.0,0.0002,2]
[359434960,1746017438321,-1000.0,0.0002,2]
[359434962,1746017438331,-1000.0,0.0002,2]
[359434964,1746017438340,-1000.0,0.0002,2]
[359434966,1746017438350,-1000.0,0.0002,2]
[359434968,1746017438359,-1000.0,0.0002,2]
[359434970,1746017438370,-1000.0,0.0002,2]
[359434972,1746017438380,-1000.0,0.0002,2]
[359434974,1746017438389,-1000.0,0.0002,2]
[359434976,1746017438402,-151.0,0.0002,2]
[359434978,1746017438411,-257.753265,0.0002,2]
[359434980,1746017438421,-151.0,0.0002,2]
[359434982,1746017438430,-200.11623,0.0002,2]
[359434984,1746017438439,-161.972147,0.0002,2]
[359434986,1746017438449,-151.0,0.0002,2]
[359434988,1746017438459,-151.344044,0.0002,2]
[359434990,1746017438468,-500.0,0.0002,2]
[359434992,1746017438478,-151.0,0.0002,2]
[359434994,1746017438487,-159.0,0.0002,2]
[359434996,1746017438496,-192.02180146,0.0002001,2]
[359434998,1746017438505,-5772.0,0.0002001,2]
[359435000,1746017438515,-1435.0,0.000201,2]
[359435002,1746017438524,-1000.0,0.000202,2]
[359435004,1746017438534,-1160.37533583,0.00020265,2]
[359435006,1746017438543,-1258.29,0.0002036,2]
[359435008,1746017438554,-2192.34400816,0.00020412,2]
[359435010,1746017438564,-1160.37533583,0.0002063,2]
[359435012,1746017438575,-5941.4676668,0.000207,2]
[359435014,1746017438584,-174.17,0.00020825,2]
[359435016,1746017438594,-1160.37533583,0.00020996,2]
[359435018,1746017438603,-350.0,0.00021,2]
[359435020,1746017438613,-215.0738,0.00021322,2]
[359435022,1746017438624,-151.0,0.00021323,2]
[359435024,1746017438633,-420.0,0.0002135,2]
[359435026,1746017438643,-420.0,0.0002135,2]
[359435028,1746017438652,-300.0,0.00021353,2]
[359435030,1746017438661,-1160.37533583,0.00021361,2]
[359435031,1746017438671,-1263.26,0.00021413,2]
[359435033,1746017438680,-1680.0,0.00021453,2]
[359435035,1746017438690,-250.0,0.00021559,2]
[359435037,1746017438699,-200.0,0.00021559,2]
[359435039,1746017438708,-250.0,0.00021597,2]
[359435041,1746017438718,-200.0,0.00021597,2]
[359435043,1746017438727,-152.45,0.00021646,2]
[359435045,1746017438736,-250.0,0.00021669,2]
[359435047,1746017438745,-200.0,0.00021669,2]
[359435049,1746017438755,-7314.26836107,0.000217,2]
[359435051,1746017438765,-1160.37533583,0.00021726,2]
[359435053,1746017438775,-5053.54823058,0.000218,2]
[359435055,1746017438784,-1839.38113258,0.000218,3]
[359435057,1746017438793,-1839.38113235,0.000218,3]
[359435059,1746017438803,-174.17,0.00021911,2]
[359435061,1746017438813,-150.0,0.00021917,2]
[359435063,1746017438822,-151.0,0.00021918,2]
[359435065,1746017438833,-300.0,0.00021918,2]
[359435067,1746017438843,-1000.0,0.00022088,2]
[359435069,1746017438852,-1160.37533583,0.00022091,2]
[359435071,1746017438861,-163.22,0.00022394,2]
[359435073,1746017438872,-1160.37533583,0.00022457,2]
[359435075,1746017438881,-500.0,0.00022499,2]
[359435077,1746017438890,-34262.70999449,0.000225,2]
[359435079,1746017438899,-1258.29,0.00022624,2]
[359435081,1746017438908,-1839.38113235,0.00022624,4]
[359435083,1746017438917,-154.065,0.00022659,2]
[359435085,1746017438927,-922.0,0.00022659,2]
[359435087,1746017438936,-1339.0,0.00022659,2]
[359435089,1746017438946,-1289.0,0.00022659,2]
[359435091,1746017438955,-797.0,0.00022659,2]
[359435093,1746017438964,-1033.602,0.00022659,2]
[359435095,1746017438972,-618.48,0.00022659,2]
[359435097,1746017438981,-2068.0,0.00022659,2]
[359435098,1746017438990,-1464.905,0.00022659,2]
[359435100,1746017438999,-582.625,0.00022659,2]
[359435102,1746017439008,-4001.0,0.00022659,2]
[359435104,1746017439017,-6746.0,0.00022659,2]
[359435106,1746017439026,-872.0,0.00022659,2]
[359435108,1746017439035,-153.0,0.00022659,2]
[359435110,1746017439044,-878.0,0.00022659,2]
[359435112,1746017439053,-223.0315306,0.00022691,2]
[359435114,1746017439062,-151.0,0.00022692,2]
[359435116,1746017439071,-505.3753181,0.0002271,2]
[359435118,1746017439079,-300.0,0.00022723,2]
[359435120,1746017439088,-1160.37533583,0.00022822,2]
[359435122,1746017439097,-177.87607364,0.00022868,2]
[359435124,1746017439106,-174.17,0.00022997,2]
[359435126,1746017439116,-1503.18221885,0.00023,2]
[359435128,1746017439125,-400.0,0.00023,2]
[359435130,1746017439134,-1160.37533583,0.00023187,2]
[359435132,1746017439143,-33098.75819492,0.000232,2]
[359435133,1746017439152,-587.0,0.00023257,2]
[359435135,1746017439161,-587.0,0.00023257,2]
[359435137,1746017439170,-150.0,0.00023287,2]
[359435139,1746017439180,-152.45,0.00023311,2]
[359435142,1746017439190,-168.829307,0.00023312,3]
[359435143,1746017439201,-163.22,0.00023318,2]
[359435145,1746017439211,-150.99,0.00023368,2]
[359435148,1746017439220,-999.99,0.00023368,2]
[359435150,1746017439229,-5407.15,0.00023368,2]
[359435152,1746017439237,-2351.0,0.00023482,2]
[359435154,1746017439246,-1839.38113235,0.00023486,4]
[359435156,1746017439256,-200.0,0.000235,2]
[359435158,1746017439268,-171.96,0.00023836,2]
[359435160,1746017439278,-312.01631586,0.00023999,2]
[359435162,1746017439287,-500.0,0.00023999,2]
[359435164,1746017439296,-547.5638548,0.00024,2]
[359435166,1746017439306,-34978.42579255,0.00024,2]
[359435168,1746017439315,-231.28369723,0.0002406,2]
[359435170,1746017439324,-151.0,0.00024061,2]
[359435173,1746017439333,-163.22,0.00024242,2]
[359435175,1746017439342,-1839.38113235,0.00024348,5]
[359435177,1746017439352,-1000.0,0.00024542,2]
[359435179,1746017439361,-150.0,0.00024657,2]
[359435181,1746017439374,-300.0,0.00024658,2]
[359435183,1746017439384,-500.0,0.00024658,2]
[359435185,1746017439393,-500.0,0.00024658,2]
[359435187,1746017439403,-500.0,0.00024773,2]
[359435189,1746017439412,-500.0,0.00024799,2]
[359435191,1746017439421,-151.0,0.000248,7]
[359435193,1746017439431,-152.661196,0.000248,7]
[359435195,1746017439440,-151.0,0.000248,7]
[359435197,1746017439449,-151.0,0.000248,7]
[359435199,1746017439458,-151.0,0.000248,7]
[359435201,1746017439467,-214.468218,0.000248,7]
[359435203,1746017439476,-214.468218,0.000248,7]
[359435204,1746017439485,-291.988966,0.000248,7]
[359435206,1746017439494,-151.0,0.000248,7]
[359435208,1746017439503,-291.988966,0.000248,7]
[359435210,1746017439513,-151.0,0.000248,7]
[359435212,1746017439522,-151.0,0.000248,7]
[359435214,1746017439532,-151.0,0.000248,7]
[359435216,1746017439541,-151.0,0.000248,7]
[359435219,1746017439550,-151.0,0.000248,7]
[359435222,1746017439560,-151.0,0.000248,7]
[359435224,1746017439569,-153.140194,0.000248,7]
[359435226,1746017439579,-210.296537,0.000248,7]
[359435228,1746017439588,-210.296537,0.000248,7]
[359435230,1746017439597,-151.0,0.000248,7]
[359435232,1746017439607,-151.0,0.000248,7]
[359435234,1746017439617,-151.0,0.000248,7]
[359435236,1746017439626,-152.918913,0.000248,7]
[359435238,1746017439638,-151.0,0.000248,7]
[359435240,1746017439647,-154.846212,0.000248,7]
[359435242,1746017439656,-151.0,0.000248,7]
[359435244,1746017439665,-154.988574,0.000248,7]
[359435246,1746017439675,-186.366421,0.000248,7]
[359435248,1746017439684,-151.0,0.000248,7]
[359435250,1746017439693,-151.0,0.000248,7]
[359435252,1746017439702,-151.0,0.000248,7]
[359435253,1746017439711,-2570.442404,0.000248,7]
[359435255,1746017439720,-152.381021,0.000248,7]
[359435257,1746017439729,-152.381021,0.000248,7]
[359435259,1746017439738,-198.738759,0.000248,7]
[359435261,1746017439747,-151.0,0.000248,7]
[359435263,1746017439756,-151.0,0.000248,7]
[359435265,1746017439765,-198.738759,0.000248,7]
[359435267,1746017439774,-151.0,0.000248,7]
[359435269,1746017439783,-183.315507,0.000248,7]
[359435271,1746017439791,-151.0,0.000248,7]
[359435273,1746017439801,-151.0,0.000248,7]
[359435275,1746017439810,-183.315507,0.000248,7]
[359435277,1746017439818,-151.0,0.000248,7]
[359435279,1746017439827,-250.380286,0.000248,7]
[359435281,1746017439837,-250.380286,0.000248,7]
[359435283,1746017439846,-938.308467,0.000248,7]
[359435285,1746017439855,-938.308467,0.000248,7]
[359435287,1746017439864,-1322.516432,0.000248,7]
[359435289,1746017439873,-1322.516432,0.000248,7]
[359435290,1746017439882,-151.0,0.000248,7]
[359435292,1746017439891,-151.0,0.000248,7]
[359435294,1746017439901,-151.0,0.000248,7]
[359435296,1746017439910,-151.0,0.000248,7]
[359435298,1746017439919,-151.0,0.000248,7]
[359435300,1746017439928,-500.0,0.0002485,2]
[359435302,1746017439938,-500.0,0.0002485,2]
[359435304,1746017439947,-500.0,0.0002485,2]
[359435306,1746017439956,-605.49057199,0.0002485,2]
[359435308,1746017439966,-243.25265261,0.0002485,2]
[359435310,1746017439975,-208.35397282,0.0002485,2]
[359435312,1746017439984,-500.0,0.0002485,2]
[359435314,1746017439994,-500.0,0.0002485,2]
[359435316,1746017440003,-301.84461807,0.0002485,2]
[359435318,1746017440012,-500.0,0.0002485,2]
[359435320,1746017440022,-500.0,0.00024867,2]
[359435322,1746017440031,-500.0,0.00024867,2]
[359435324,1746017440040,-500.0,0.00024867,2]
[359435326,1746017440050,-501.74607688,0.00024867,2]
[359435328,1746017440059,-500.0,0.00024867,2]
[359435329,1746017440068,-280.17388614,0.00024873,2]
[359435331,1746017440077,-500.0,0.00024873,2]
[359435333,1746017440086,-500.86272975,0.00024873,2]
[359435335,1746017440095,-502.19667785,0.00024873,2]
[359435337,1746017440105,-500.0,0.00024873,2]
[359435339,1746017440114,-501.90027515,0.00024873,2]
[359435341,1746017440124,-500.0,0.00024873,2]
[359435343,1746017440133,-3909.5134997,0.00024876,2]
[359435345,1746017440143,-744.21281638,0.00024876,2]
[359435347,1746017440152,-150.0,0.00024886,2]
[359435349,1746017440161,-1258.29,0.00024888,2]
[359435351,1746017440171,-151.0,0.000249,7]
[359435353,1746017440180,-158.62314,0.000249,7]
[359435355,1746017440191,-151.0,0.000249,7]
[359435357,1746017440200,-220.701411,0.000249,7]
[359435359,1746017440210,-151.0,0.000249,7]
[359435361,1746017440220,-210.693496,0.000249,7]
[359435363,1746017440231,-151.0,0.000249,7]
[359435365,1746017440240,-178.424441,0.000249,7]
[359435367,1746017440251,-151.0,0.000249,7]
[359435369,1746017440263,-359.81892,0.000249,7]
[359435371,1746017440272,-359.81892,0.000249,7]
[359435373,1746017440282,-151.0,0.000249,7]
[359435375,1746017440291,-151.220577,0.000249,7]
[359435377,1746017440301,-152.234246,0.000249,7]
[359435379,1746017440310,-151.0,0.000249,7]
[359435381,1746017440319,-151.0,0.000249,7]
[359435383,1746017440328,-152.921439,0.000249,7]
[359435385,1746017440338,-151.0,0.000249,7]
[359435387,1746017440347,-155.221886,0.000249,7]
[359435389,1746017440356,-151.0,0.000249,7]
[359435391,1746017440367,-151.0,0.000249,7]
[359435393,1746017440376,-151.0,0.000249,7]
[359435395,1746017440385,-151.0,0.000249,7]
[359435397,1746017440394,-296.368009,0.000249,7]
[359435399,1746017440404,-153.802451,0.000249,7]
[359435401,1746017440413,-155.808902,0.000249,7]
[359435403,1746017440423,-151.0,0.000249,7]
[359435405,1746017440432,-214.468218,0.000249,7]
[359435407,1746017440442,-214.468218,0.000249,7]
[359435409,1746017440451,-291.988966,0.000249,7]
[359435411,1746017440460,-151.0,0.000249,7]
[359435413,1746017440469,-291.988966,0.000249,7]
[359435415,1746017440478,-151.0,0.000249,7]
[359435417,1746017440488,-151.0,0.000249,7]
[359435419,1746017440498,-178.199767,0.000249,7]
[359435421,1746017440508,-151.0,0.000249,7]
[359435423,1746017440517,-151.0,0.000249,7]
[359435425,1746017440526,-151.0,0.000249,7]
[359435426,1746017440536,-153.140194,0.000249,7]
[359435428,1746017440545,-210.296537,0.000249,7]
[359435431,1746017440554,-210.296537,0.000249,7]
[359435432,1746017440564,-151.0,0.000249,7]
[359435434,1746017440574,-151.0,0.000249,7]
[359435436,1746017440583,-151.0,0.000249,7]
[359435438,1746017440593,-596937.772375,0.000249,3]
[359435440,1746017440603,-152.45,0.00024977,2]
[359435442,1746017440613,-907.92,0.00025,3]
[359435445,1746017440624,-450.0,0.00025,2]
[359435447,1746017440634,-500.0,0.00025,2]
[359435448,1746017440643,-163.22,0.00025166,2]
[359435450,1746017440653,-1839.38113235,0.0002521,5]
[359435453,1746017440663,-823.0,0.00025335,2]
[359435454,1746017440672,-239.84119403,0.00025429,2]
[359435456,1746017440682,-151.0,0.0002543,2]
[359435458,1746017440691,-500.0,0.00025452,2]
[359435460,1746017440700,-151.0,0.00025659,7]
[359435462,1746017440709,-922.0,0.00025659,2]
[359435464,1746017440718,-1336.0,0.00025659,2]
[359435466,1746017440727,-1288.0,0.00025659,2]
[359435468,1746017440736,-797.0,0.00025659,2]
[359435470,1746017440746,-913.0,0.00025659,2]
[359435472,1746017440755,-549.0,0.00025659,2]
[359435474,1746017440764,-2068.0,0.00025659,2]
[359435476,1746017440773,-1449.0,0.00025659,2]
[359435478,1746017440782,-580.0,0.00025659,2]
[359435480,1746017440791,-2072.024,0.00025659,2]
[359435482,1746017440801,-6746.0,0.00025659,2]
[359435484,1746017440810,-153.0,0.00025659,2]
[359435486,1746017440819,-878.0,0.00025659,2]
[359435488,1746017440828,-2158.0,0.00025703,2]
[359435490,1746017440838,-177.87607364,0.00025836,2]
[359435493,1746017440984,-150.0,0.00026027,2]
[359435495,1746017440996,-1839.38113235,0.00026072,6]
[359435496,1746017441007,-163.22,0.0002609,2]
[359435498,1746017441017,-20733.65458064,0.000265,2]
[359435500,1746017441027,-152.45,0.00026642,2]
[359435503,1746017441038,-248.71531821,0.00026798,2]
[359435504,1746017441047,-151.0,0.00026799,2]
[359435506,1746017441057,-1839.38113235,0.00026934,7]
[359435509,1746017441067,-1000.0,0.00026996,2]
[359435510,1746017441076,-500.0,0.00027,2]
[359435513,1746017441086,-1258.29,0.00027151,2]
[359435514,1746017441095,-215.557479,0.00027397,2]
[359435516,1746017441104,-210.82603367,0.00027397,2]
[359435518,1746017441113,-150.56035621,0.00027397,2]
[359435520,1746017441125,-485.8571884,0.00027397,2]
[359435522,1746017441134,-400.0,0.00027397,2]
[359435524,1746017441143,-400.0,0.00027397,2]
[359435526,1746017441153,-400.0,0.00027397,2]
[359435528,1746017441162,-400.0,0.00027397,2]
[359435530,1746017441171,-312.17,0.00027397,2]
[359435532,1746017441180,-1152.0,0.00027598,2]
[359435534,1746017441190,-1839.38113235,0.00027797,7]
[359435536,1746017441199,-1623.99,0.00028156,2]
[359435538,1746017441209,-455.76,0.00028156,2]
[359435540,1746017441218,-257.91778498,0.00028167,2]
[359435542,1746017441227,-151.0,0.00028168,2]
[359435544,1746017441237,-152.45,0.00028307,2]
[359435546,1746017441246,-168.829307,0.00028483,2]
[359435548,1746017441264,-1839.38113235,0.00028659,8]
[359435550,1746017441273,-918.0,0.00028659,2]
[359435552,1746017441282,-292.183,0.00028659,2]
[359435554,1746017441293,-913.0,0.00028659,2]
[359435556,1746017441302,-549.0,0.00028659,2]
[359435558,1746017441311,-417.779,0.00028659,2]
[359435560,1746017441320,-580.0,0.00028659,2]
[359435562,1746017441332,-6746.0,0.00028659,2]
[359435564,1746017441341,-877.05,0.00028659,2]
[359435566,1746017441351,-177.87607364,0.00028804,2]
[359435568,1746017441361,-39407.44040435,0.00029,6]
[359435570,1746017441373,-550.0,0.00029,2]
[359435572,1746017441383,-1258.29,0.00029415,2]
[359435574,1746017441392,-1000.0,0.0002945,2]
[359435576,1746017441401,-500.0,0.00029452,2]
[359435578,1746017441411,-1839.38113235,0.00029521,8]
[359435580,1746017441421,-267.46074303,0.00029536,2]
[359435582,1746017441430,-151.0,0.00029537,2]
[359435584,1746017441439,-152.45,0.00029972,2]
[359435586,1746017441449,-155.15136,0.0003,2]
[359435588,1746017441458,-3030.35460531,0.0003,5]
[359435590,1746017441467,-1613.0,0.00030064,2]
[359435592,1746017441477,-152.18,0.00030137,2]
[359435594,1746017441486,-1000.0,0.00030329,5]
[359435596,1746017441496,-928.05154042,0.00030346,5]
[359435598,1746017441506,-163.14766298,0.00030352,5]
[359435600,1746017441515,-675.71907517,0.00030352,5]
[359435602,1746017441524,-1839.38113235,0.00030383,9]
[359435604,1746017441533,-277.35679052,0.00030905,2]
[359435606,1746017441543,-151.0,0.00030906,2]
[359435608,1746017441552,-600.0,0.00031,2]
[359435610,1746017441561,-910.28,0.00031165,2]
[359435612,1746017441570,-1839.38113235,0.00031245,9]
[359435614,1746017441580,-9814.37,0.00031426,2]
[359435616,1746017441591,-2047.86,0.00031426,2]
[359435617,1746017441600,-580.0,0.00031659,2]
[359435619,1746017441609,-5211.755,0.00031659,2]
[359435621,1746017441619,-1258.29,0.00031679,2]
[359435623,1746017441628,-177.87607364,0.00031772,2]
[359435625,1746017441638,-303.9,0.00031992,2]
[359435627,1746017441647,-923.88,0.00031992,2]
[359435630,1746017441657,-2305.98,0.00031992,2]
[359435631,1746017441666,-302.34,0.00031992,2]
[359435633,1746017441675,-426.98,0.00031992,2]
[359435635,1746017441684,-351.81,0.00031992,2]
[359435637,1746017441694,-324.22,0.00031992,2]
[359435639,1746017441704,-598.85560118,0.00032,5]
[359435641,1746017441714,-1839.38113235,0.00032107,10]
[359435643,1746017441723,-287.61899177,0.00032274,2]
[359435645,1746017441732,-151.0,0.00032275,2]
[359435647,1746017441741,-999.0,0.00032749,2]
[359435649,1746017441751,-431.99,0.00032814,2]
[359435651,1746017441759,-1839.38113235,0.00032969,11]
[359435652,1746017441768,-650.0,0.00033,2]
[359435653,1746017441777,-508.25,0.000331,120]
[359435654,1746017441786,-312.17,0.00033165,2]
[359435655,1746017441796,-508.25,0.000335,120]
[359435656,1746017441805,-298.26089446,0.00033643,2]
[359435657,1746017441814,-151.0,0.00033644,2]
[359435658,1746017441823,-508.25,0.000338,120]
[359435659,1746017441832,-1839.38113235,0.00033831,11]
[359435660,1746017441842,-455.76,0.00033938,2]
[359435661,1746017441851,-1258.29,0.00033943,2]
[359435662,1746017441861,-206.0,0.0003406,2]
[359435663,1746017441871,-508.25,0.000341,120]
[359435664,1746017441880,-508.25,0.000344,120]
[359435665,1746017441890,-150.0,0.00034548,10]
[359435667,1746017441900,-1179.8,0.0003459,2]
[359435669,1746017441910,-351.59,0.0003459,2]
[359435671,1746017441919,-1839.38113235,0.00034693,12]
[359435673,1746017441929,-508.25,0.000347,120]
[359435674,1746017441938,-177.87607364,0.0003474,2]
[359435676,1746017441948,-508.25,0.00035,120]
[359435678,1746017441957,-1000.0,0.00035,2]
[359435680,1746017441967,-1002.0,0.00035,3]
[359435681,1746017441976,-1002.0,0.00035,2]
[359435682,1746017441986,-544.0,0.00035,90]
[359435683,1746017441995,-700.0,0.00035,2]
[359435684,1746017442005,-319.05427149,0.00035012,2]
[359435685,1746017442014,-151.0,0.00035013,2]
[359435686,1746017442024,-206.0,0.0003521,2]
[359435687,1746017442034,-508.25,0.000353,120]
[359435688,1746017442044,-3909.51349969,0.00035335,2]
[359435689,1746017442053,-744.21281638,0.00035335,2]
[359435690,1746017442063,-152.0,0.00035383,3]
[359435691,1746017442072,-12500.0,0.0003554,5]
[359435692,1746017442081,-12500.0,0.00035549,5]
[359435693,1746017442091,-1839.38113235,0.00035555,12]
[359435694,1746017442100,-12500.0,0.00035558,5]
[359435695,1746017442110,-500.0,0.00035562,2]
[359435696,1746017442122,-12500.0,0.00035567,5]
[359435697,1746017442132,-150.0,0.00035573,5]
[359435698,1746017442141,-12500.0,0.00035575,5]
[359435700,1746017442151,-12500.0,0.00035584,5]
[359435702,1746017442160,-12500.0,0.00035593,5]
[359435703,1746017442169,-12500.0,0.00035602,5]
[359435705,1746017442180,-12500.0,0.00035607,5]
[359435706,1746017442189,-12500.0,0.00035611,5]
[359435707,1746017442199,-151.0,0.00035611,7]
[359435708,1746017442208,-12500.0,0.00035616,5]
[359435709,1746017442218,-8646.73625419,0.00035616,5]